bitfinex/quotes_SOLUSD_20241008
["timestamp","ask_amount","ask_price","bid_price","bid_amount"]
[1728366325391,1.74073566,143.63,143.58,1.39268811]
[1728366325662,6.9639,143.6,143.57,0.12549]
[1728366325993,1.74073566,143.63,143.52,50.0]
[1728366326217,6.9653,143.57,143.53,6.9668]
[1728366326393,17.4076,143.62,143.52,63.03073064]
[1728366326594,1.74109911,143.61,143.54,17.4164]
[1728366326795,1.74109911,143.61,143.55,1.3928834]
[1728366327408,1.74109911,143.61,143.56,0.12549]
[1728366327603,1.74109911,143.61,143.56,0.25098]
[1728366328017,6.9642,143.59,143.56,0.25098]
[1728366328396,6.9639,143.6,143.56,0.25098]
[1728366329102,6.9639,143.6,143.56,30.993464]
[1728366329329,6.9639,143.6,143.57,1.39280442]
[1728366329812,6.9639,143.6,143.56,30.993464]
[1728366331120,6.9643,143.59,143.56,24.027864]
[1728366331442,6.9652,143.57,143.55,1.39294518]
[1728366331730,6.9657,143.56,143.53,1.39294518]
[1728366332019,6.9657,143.56,143.51,30.7173]
[1728366333838,6.9662,143.55,143.52,0.25098]
[1728366334433,20.0,143.58,143.48,67.4231]
[1728366334622,20.0,143.58,143.5,6.9684]
[1728366334623,6.9668,143.54,143.5,6.9684]
[1728366334821,6.9668,143.54,143.51,1.39339466]
[1728366336097,6.9668,143.54,143.5,7.09389]
[1728366336322,6.9668,143.54,143.51,0.25098]
[1728366339832,6.9668,143.54,143.48,67.4231]
[1728366340127,6.9668,143.54,143.5,0.25098]
[1728366341236,6.9672,143.53,143.5,0.25098]
[1728366342535,6.9677,143.52,143.49,0.25098]
[1728366343536,1.74199024,143.52,143.45,17.4269]
[1728366345035,6.9686,143.5,143.46,30.998364]
[1728366346029,6.9686,143.5,143.47,1.39374167]
[1728366346241,16.162,143.53,143.5,0.25098]
[1728366346440,16.162,143.53,143.5,1.64443783]
[1728366349436,23.1292,143.53,143.5,0.25098]
[1728366350349,23.1292,143.53,143.49,0.25098]
[1728366351141,16.162,143.53,143.49,0.25098]
[1728366351339,6.9676,143.52,143.49,0.25098]
[1728366353250,6.9681,143.51,143.48,0.25098]
[1728366356625,6.9681,143.51,143.48,1.64462013]
[1728366356950,16.162,143.53,143.48,1.64462013]
[1728366357249,6.9676,143.52,143.48,8.61412013]
[1728366359456,6.9676,143.52,143.48,7.22048]
[1728366359753,8.70951724,143.52,143.48,7.22048]
[1728366360260,6.9676,143.52,143.48,8.61408109]
[1728366361559,23.1292,143.53,143.49,6.969]
[1728366361773,6.9663,143.55,143.51,7.09349]
[1728366362060,6.9663,143.55,143.52,1.39331241]
[1728366365672,1.74164052,143.56,143.51,1.39334822]
[1728366365841,6.9671,143.53,143.5,0.25098]
[1728366366164,6.9671,143.53,143.5,1.64442646]
[1728366367398,1.74180573,143.56,143.5,1.64442646]
[1728366368091,6.9663,143.55,143.52,0.25098]
[1728366368247,6.9663,143.55,143.52,1.6442459]
[1728366368739,6.9668,143.54,143.51,0.25098]
[1728366369768,6.9676,143.52,143.49,17.4223]
[1728366370069,15.5639,143.57,143.46,20.0]
[1728366370247,6.9687,143.5,143.47,1.39368726]
[1728366370444,6.9684,143.51,143.47,1.39368726]
[1728366370926,1.74213741,143.53,143.45,24.093]
[1728366370927,6.9692,143.49,143.45,24.3979]
[1728366371667,6.9696,143.48,143.44,6.9714]
[1728366371868,6.9704,143.47,143.42,17.4306]
[1728366372073,6.9704,143.47,143.43,6.9719]
[1728366372249,1.74249915,143.5,143.43,20.0]
[1728366372659,6.9701,143.47,143.43,6.9718]
[1728366372970,6.4701,143.47,143.43,6.9718]
[1728366374099,6.4701,143.47,143.44,0.25098]
[1728366375157,1.74249915,143.5,143.43,24.027864]
[1728366375373,6.9702,143.47,143.43,24.027864]
[1728366375856,8.71357846,143.46,143.42,17.4306]
[1728366376054,16.81932359,143.49,143.42,18.82485887]
[1728366376291,15.0765,143.49,143.43,13.03073064]
[1728366376561,15.0765,143.49,143.45,6.971]
[1728366376562,22.0457,143.49,143.45,6.971]
[1728366376768,22.0457,143.49,143.44,8.36536316]
[1728366376969,22.0457,143.49,143.44,6.9714]
[1728366377168,22.0457,143.49,143.45,1.39398603]
[1728366377836,1.74248085,143.52,143.47,13.03073064]
[1728366377985,15.8654,143.53,143.5,13.03073064]
[1728366378179,15.8654,143.53,143.51,1.39345891]
[1728366378354,6.9661,143.56,143.51,8.36145891]
[1728366378758,15.8897,143.57,143.52,7.21848]
[1728366379069,17.63118126,143.57,143.53,8.36018501]
[1728366379264,24.59648126,143.57,143.53,1.39318501]
[1728366379957,24.59648126,143.57,143.52,0.25098]
[1728366380391,24.59648126,143.57,143.52,1.64424429]
[1728366380858,6.9658,143.56,143.52,0.25098]
[1728366381058,1.74163503,143.55,143.52,0.25098]
[1728366381259,6.9662,143.55,143.51,0.25098]
[1728366381480,6.9662,143.55,143.51,8.61242833]
[1728366381671,6.9662,143.55,143.51,7.21908]
[1728366381976,15.8897,143.57,143.51,0.25098]
[1728366381977,8.70841083,143.54,143.51,0.25098]
[1728366382272,8.70841083,143.54,143.5,17.4209]
[1728366382458,8.70841083,143.54,143.47,1.39377635]
[1728366382459,21.74171083,143.54,143.47,1.39377635]
[1728366382662,21.74171083,143.54,143.45,1.39381281]
[1728366382870,6.9677,143.52,143.47,6.9699]
[1728366383370,6.9677,143.52,143.48,1.39373595]
[1728366383549,6.9677,143.52,143.48,8.36323595]
[1728366383757,15.8897,143.57,143.49,13.03073064]
[1728366383971,6.9666,143.55,143.51,0.25098]
[1728366384589,1.74174174,143.56,143.52,1.39334576]
[1728366384767,22.8549,143.57,143.53,0.25098]
[1728366385265,6.9657,143.56,143.53,1.39320413]
[1728366386176,8.70727364,143.56,143.52,0.25098]
[1728366386544,6.9657,143.56,143.52,1.64424263]
[1728366388083,22.8549,143.57,143.52,8.61164263]
[1728366388404,16.2146,143.61,143.54,20.40522868]
[1728366388597,16.2146,143.61,143.57,0.12549]
[1728366388770,16.2146,143.61,143.58,6.9643]
[1728366389122,6.9623,143.63,143.59,8.35686397]
[1728366389266,16.89282201,143.64,143.6,6.9637]
[1728366389467,23.85472201,143.64,143.6,0.25098]
[1728366389661,22.1137,143.64,143.6,0.25098]
[1728366391094,15.1518,143.64,143.6,0.12549]
[1728366391392,8.70297924,143.63,143.59,0.12549]
[1728366392398,8.70297924,143.63,143.57,17.412]
[1728366392399,1.74067924,143.63,143.57,17.412]
[1728366392989,1.74067924,143.63,143.58,1.39277488]
[1728366393173,8.70337924,143.63,143.59,0.25098]
[1728366393498,6.9627,143.63,143.59,0.25098]
[1728366393694,6.9629,143.62,143.58,24.027864]
[1728366394404,1.74080015,143.62,143.54,17.4162]
[1728366395402,6.9654,143.57,143.52,6.9675]
[1728366395575,6.9662,143.55,143.5,6.5522]
[1728366395775,6.9658,143.56,143.51,6.9681]
[1728366396079,8.70736554,143.56,143.51,6.9681]
[1728366396279,16.066,143.57,143.52,6.9672]
[1728366396280,23.0312,143.57,143.52,6.9672]
[1728366396531,1.7414927,143.56,143.52,6.9672]
[1728366397196,8.7071927,143.56,143.52,6.9672]
[1728366398210,6.9662,143.55,143.52,0.12549]
[1728366398387,1.74166834,143.54,143.5,17.4208]
[1728366398593,6.9667,143.54,143.5,17.4208]
[1728366399317,6.9667,143.54,143.51,1.39344718]
[1728366399756,6.9676,143.52,143.47,30.872274]
[1728366400024,1.74181032,143.56,143.49,0.12549]
[1728366400025,6.9672,143.53,143.49,0.12549]
[1728366400418,1.74190599,143.52,143.46,17.4252]
[1728366400642,6.9686,143.5,143.46,24.3956]
[1728366400810,16.3787,143.5,143.46,17.4252]
[1728366401019,16.3787,143.5,143.47,1.39387442]
[1728366401567,16.3787,143.5,143.47,6.9697]
[1728366401739,16.3787,143.5,143.46,24.3957]
[1728366401908,16.3787,143.5,143.47,8.48928388]
[1728366402107,6.9672,143.53,143.49,6.9691]
[1728366402327,8.70922339,143.53,143.49,6.9691]
[1728366403037,8.70922339,143.53,143.47,0.25098]
[1728366403205,8.70922339,143.53,143.49,0.25098]
[1728366403206,1.7420268,143.52,143.49,0.25098]
[1728366405188,6.9672,143.53,143.49,0.25098]
[1728366405897,6.9668,143.54,143.5,1.39360674]
[1728366406749,24.37600843,143.55,143.5,8.36220674]
[1728366406958,24.37600843,143.55,143.49,24.027864]
[1728366407126,15.6677,143.55,143.52,6.9674]
[1728366407688,15.6677,143.55,143.52,8.36066647]
[1728366407916,15.6677,143.55,143.52,6.9674]
[1728366409688,15.6677,143.55,143.53,1.39325521]
[1728366410302,15.6677,143.55,143.52,6.9674]
[1728366410619,15.6677,143.55,143.53,1.39325662]
[1728366411798,15.2259,143.58,143.54,30.994164]
[1728366412012,15.2259,143.58,143.55,1.39302226]
[1728366413003,15.2259,143.58,143.55,8.35912226]
[1728366413720,15.2259,143.58,143.55,6.9661]
[1728366414022,23.93225534,143.58,143.54,0.12549]
[1728366415121,16.96715534,143.58,143.53,6.967]
[1728366415422,6.9652,143.57,143.53,6.967]
[1728366417119,6.9652,143.57,143.53,8.36014153]
[1728366417634,22.1907,143.58,143.53,8.36014153]
[1728366418430,22.1907,143.58,143.53,6.967]
[1728366419823,6.9652,143.57,143.53,6.967]
[1728366420003,8.70750581,143.56,143.52,17.54379]
[1728366420428,6.9663,143.55,143.5,6.9685]
[1728366421551,1.74173737,143.54,143.49,17.4223]
[1728366421713,16.2554,143.55,143.46,17.4257]
[1728366421913,36.2554,143.55,143.46,17.4257]
[1728366422130,6.9691,143.49,143.46,17.4257]
[1728366422312,6.9691,143.49,143.43,52.2892]
[1728366422514,6.9691,143.49,143.44,6.9715]
[1728366423029,6.9691,143.49,143.45,6.9709]
[1728366423219,8.71207584,143.48,143.43,17.4294]
[1728366423431,8.71207584,143.48,143.43,24.4013]
[1728366423715,6.9701,143.47,143.43,24.4013]
[1728366424228,7.88501483,143.5,143.4,56.0234]
[1728366424430,20.0,143.49,143.41,6.9725]
[1728366424738,1.74276214,143.48,143.43,6.9719]
[1728366425050,6.9689,143.5,143.44,1.39396286]
[1728366425306,1.74244056,143.49,143.46,6.9705]
[1728366425400,8.7113592,143.5,143.46,6.9705]
[1728366425907,8.7113592,143.5,143.45,7.22188]
[1728366426221,8.7113592,143.5,143.46,1.39396857]
[1728366426611,6.9689,143.5,143.46,1.39396857]
[1728366426814,1.74245499,143.49,143.46,1.39396857]
[1728366427419,1.74245759,143.49,143.46,1.39396857]
[1728366427834,1.7424595,143.5,143.46,8.36436857]
[1728366428035,1.7424595,143.5,143.46,6.9704]
[1728366428205,8.71054286,143.51,143.47,1.39387429]
[1728366428404,6.9689,143.5,143.45,7.22198]
[1728366429117,6.9691,143.49,143.45,7.22198]
[1728366429535,1.74234286,143.51,143.45,7.22198]
[1728366429740,6.9687,143.5,143.45,7.22198]
[1728366430817,6.9687,143.5,143.46,1.39388931]
[1728366431335,16.0819,143.52,143.47,0.25098]
[1728366431336,24.79192617,143.52,143.47,0.25098]
[1728366431810,24.79192617,143.52,143.47,7.22098]
[1728366432126,6.9682,143.51,143.48,1.39376493]
[1728366432328,1.74221067,143.51,143.46,24.3961]
[1728366432511,6.9688,143.5,143.46,24.3961]
[1728366434715,6.9688,143.5,143.47,1.39385077]
[1728366435724,6.9688,143.5,143.46,24.3961]
[1728366437228,23.0497,143.52,143.48,6.9694]
[1728366437431,16.0819,143.52,143.49,8.36266258]
[1728366438238,16.0819,143.52,143.49,6.969]
[1728366438615,16.0819,143.52,143.49,8.36258828]
[1728366438940,16.0819,143.52,143.48,17.4235]
[1728366439119,1.74208827,143.51,143.48,17.4235]
[1728366439939,6.9687,143.5,143.46,30.998264]
[1728366440834,6.9687,143.5,143.46,7.22138]
[1728366442934,6.9687,143.5,143.47,1.39384781]
[1728366443143,16.0819,143.52,143.49,6.9688]
[1728366443321,16.0819,143.52,143.49,8.36239259]
[1728366444271,16.0819,143.52,143.5,1.39358326]
[1728366444437,16.0819,143.52,143.49,6.9688]
[1728366445539,16.0819,143.52,143.5,1.39359923]
[1728366445728,16.0819,143.52,143.49,6.9688]
[1728366446119,8.70850976,143.55,143.51,6.9677]
[1728366446337,15.8765,143.56,143.52,1.39336035]
[1728366446338,24.58400044,143.56,143.52,1.39336035]
[1728366447043,6.9662,143.55,143.51,8.36105578]
[1728366448029,6.9662,143.55,143.51,6.9677]
[1728366449541,15.8765,143.56,143.52,1.3933971]
[1728366449749,6.9648,143.58,143.54,6.9666]
[1728366449918,6.9648,143.58,143.54,8.35971579]
[1728366450138,6.9633,143.61,143.57,24.3777]
[1728366450416,16.0796,143.63,143.57,24.3777]
[1728366450417,1.74115335,143.62,143.57,24.3777]
[1728366450754,6.9633,143.61,143.57,24.3777]
[1728366451243,6.9633,143.61,143.58,1.39280425]
[1728366452926,8.70405335,143.62,143.58,8.35740425]
[1728366453137,16.0796,143.63,143.6,6.9636]
[1728366453355,16.0796,143.63,143.59,7.21508]
[1728366453642,23.0419,143.63,143.59,7.21508]
[1728366454120,1.7407137,143.66,143.6,1.39258163]
[1728366454238,6.962,143.64,143.6,8.35628163]
[1728366454956,6.962,143.64,143.6,1.39258163]
[1728366456336,6.9623,143.63,143.6,1.39258163]
[1728366457641,1.7407137,143.66,143.61,0.25098]
[1728366457850,17.06214701,143.67,143.61,0.25098]
[1728366458843,15.3217,143.67,143.61,24.027864]
[1728366459059,6.9609,143.66,143.62,8.35505804]
[1728366459349,22.2821,143.67,143.62,8.35505804]
[1728366460124,6.1216,143.7,143.67,6.9603]
[1728366460329,6.1216,143.7,143.65,18.79464772]
[1728366460330,1.74005965,143.7,143.65,18.79464772]
[1728366460540,22.5402,143.71,143.67,6.96]
[1728366460740,22.5402,143.71,143.67,8.35190957]
[1728366460951,22.5402,143.71,143.67,1.39190957]
[1728366461140,22.5402,143.71,143.66,8.35260988]
[1728366464646,22.5402,143.71,143.67,0.12549]
[1728366464846,22.5402,143.71,143.68,1.39174251]
[1728366465359,15.5816,143.71,143.68,8.35154251]
[1728366465571,8.69761638,143.73,143.69,0.12549]
[1728366465862,6.9576,143.73,143.69,0.12549]
[1728366466159,16.2866,143.75,143.67,24.48579]
[1728366466160,8.69787119,143.72,143.67,24.48579]
[1728366466367,6.9586,143.71,143.68,0.12549]
[1728366468148,1.73968006,143.74,143.67,0.12549]
[1728366468352,19.13268006,143.74,143.67,0.25098]
[1728366468533,6.9593,143.7,143.66,0.12549]
[1728366468864,19.13268006,143.74,143.66,0.25098]
[1728366468865,6.9595,143.69,143.66,0.25098]
[1728366469237,6.9595,143.69,143.64,30.4942]
[1728366469733,6.9595,143.69,143.64,24.3662]
[1728366469937,6.9608,143.66,143.62,6.9624]
[1728366470662,1.74026011,143.66,143.6,6.6121]
[1728366470849,6.9619,143.64,143.6,13.5758]
[1728366471041,6.9618,143.64,143.6,6.9637]
[1728366472665,8.70096595,143.67,143.62,23.776884]
[1728366472841,15.9359,143.68,143.63,8.60542171]
[1728366473043,22.8959,143.68,143.64,6.9617]
[1728366473236,22.8959,143.68,143.63,7.21308]
[1728366474067,1.7401021,143.67,143.63,0.12549]
[1728366474658,6.9622,143.64,143.61,24.027864]
[1728366474868,6.9614,143.65,143.61,30.991064]
[1728366475569,6.961,143.66,143.61,30.991064]
[1728366476067,6.961,143.66,143.62,6.9627]
[1728366476269,6.961,143.66,143.62,8.35495576]
[1728366478156,1.7401021,143.67,143.62,18.79825576]
[1728366478356,8.7006021,143.67,143.63,6.9622]
[1728366480301,8.7006021,143.67,143.62,18.79825576]
[1728366480572,1.7401021,143.67,143.6,24.027864]
[1728366480772,6.9618,143.64,143.6,30.991464]
[1728366481148,6.9614,143.65,143.61,6.9632]
[1728366481358,6.9614,143.65,143.62,0.25098]
[1728366481769,6.9614,143.65,143.62,1.64328216]
[1728366482478,6.961,143.66,143.62,1.64328216]
[1728366482680,6.961,143.66,143.62,7.21368]
[1728366482994,6.961,143.66,143.63,1.39230133]
[1728366483352,6.9614,143.65,143.63,1.39230133]
[1728366483754,6.9614,143.65,143.62,1.64328143]
[1728366483954,6.961,143.66,143.62,1.64328143]
[1728366484157,6.961,143.66,143.62,8.60598143]
[1728366484373,24.63650483,143.68,143.62,1.64328143]
[1728366484573,15.9359,143.68,143.64,0.25098]
[1728366484872,15.376,143.72,143.64,0.25098]
[1728366485059,1.73986603,143.71,143.64,1.64287282]
[1728366485976,6.959,143.7,143.66,6.9607]
[1728366486167,6.959,143.7,143.67,1.39190381]
[1728366487057,15.376,143.72,143.67,1.39190381]
[1728366487058,17.11586909,143.72,143.67,18.79210381]
[1728366487556,15.376,143.72,143.67,18.79210381]
[1728366487977,22.3343,143.72,143.67,25.75230381]
[1728366488283,22.3343,143.72,143.68,7.08529]
[1728366488478,1.73967366,143.71,143.66,0.12549]
[1728366488777,6.9593,143.7,143.66,0.25098]
[1728366489021,6.9593,143.7,143.66,0.12549]
[1728366489208,6.9593,143.7,143.66,1.51742349]
[1728366489372,6.9593,143.7,143.66,8.47812349]
[1728366489576,1.73967366,143.71,143.66,8.47812349]
[1728366489874,6.9586,143.71,143.67,7.21098]
[1728366490064,22.334,143.72,143.68,8.35154049]
[1728366490761,22.334,143.72,143.68,6.9598]
[1728366491066,22.334,143.72,143.69,1.3917011]
[1728366491568,22.334,143.72,143.68,0.12549]
[1728366493476,22.334,143.72,143.64,20.0]
[1728366493477,1.7395925,143.71,143.64,20.0]
[1728366493686,6.9591,143.7,143.66,6.9607]
[1728366493868,6.9585,143.71,143.67,8.35191571]
[1728366494264,15.376,143.72,143.69,6.9592]
[1728366494667,15.376,143.72,143.67,18.79231571]
[1728366494668,15.376,143.72,143.68,0.25098]
[1728366494981,15.376,143.72,143.68,7.21068]
[1728366495284,22.334,143.72,143.69,1.39164569]
[1728366498392,6.9575,143.73,143.69,8.35094569]
[1728366498596,6.9575,143.73,143.7,0.12549]
[1728366498900,6.9571,143.74,143.7,7.20988]
[1728366499074,6.9571,143.74,143.71,1.3914477]
[1728366499674,6.9571,143.74,143.7,7.20988]
[1728366503689,6.9566,143.75,143.72,0.25098]
[1728366503880,1.73904541,143.79,143.73,1.39123633]
[1728366505199,6.9556,143.77,143.73,1.39123633]
[1728366506095,6.9556,143.77,143.73,8.34863633]
[1728366506903,6.9556,143.77,143.74,0.25098]
[1728366507507,16.0043,143.8,143.74,30.984764]
[1728366507508,6.9551,143.78,143.74,30.984764]
[1728366507894,6.9547,143.79,143.76,0.12549]
[1728366508205,6.9547,143.79,143.77,1.3909385]
[1728366509109,6.9547,143.79,143.76,1.51642318]
[1728366509706,6.9547,143.79,143.75,0.12549]
[1728366509897,1.73870512,143.78,143.74,0.12549]
[1728366510083,6.956,143.76,143.74,0.25098]
[1728366510411,6.956,143.76,143.74,1.64215022]
[1728366510800,6.956,143.76,143.74,0.12549]
[1728366511111,1.73892524,143.81,143.7,17.3967]
[1728366511112,6.957,143.74,143.7,17.3967]
[1728366511315,1.73926986,143.76,143.67,17.4005]
[1728366511497,1.73926986,143.76,143.68,1.39155142]
[1728366511498,6.9588,143.71,143.68,1.39155142]
[1728366511697,6.9588,143.71,143.67,17.4005]
[1728366511899,6.9594,143.69,143.65,6.2652]
[1728366512089,17.3932,143.74,143.64,6.9614]
[1728366512090,15.5999,143.71,143.64,6.9614]
[1728366512291,6.9604,143.67,143.63,74.3669]
[1728366512589,1.73991344,143.7,143.63,74.3669]
[1728366513523,1.73991344,143.7,143.65,0.25098]
[1728366513693,1.73991344,143.7,143.64,24.027864]
[1728366514133,6.9599,143.68,143.64,24.027864]
[1728366515315,1.73991344,143.7,143.65,1.39198279]
[1728366515506,22.5587,143.71,143.66,7.21168]
[1728366515695,22.5587,143.71,143.67,1.39186423]
[1728366516016,6.959,143.7,143.67,1.39186423]
[1728366516694,6.959,143.7,143.66,0.25098]
[1728366517205,6.9598,143.69,143.66,0.25098]
[1728366518718,6.96,143.68,143.65,0.12549]
[1728366518890,6.96,143.68,143.65,0.25098]
[1728366519091,1.74001789,143.67,143.6,17.4087]
[1728366519300,6.9617,143.65,143.6,24.3721]
[1728366519613,6.9617,143.65,143.6,25.764441]
[1728366520395,6.9617,143.65,143.61,6.9632]
[1728366520619,6.9617,143.65,143.62,1.39233503]
[1728366522205,6.9617,143.65,143.62,0.12549]
[1728366522412,6.9617,143.65,143.61,0.25098]
[1728366522708,6.9617,143.65,143.61,1.64332325]
[1728366522911,6.9617,143.65,143.61,0.25098]
[1728366523303,6.9617,143.65,143.61,1.64332273]
[1728366524316,6.9617,143.65,143.61,0.25098]
[1728366524519,6.9617,143.65,143.61,1.64332185]
[1728366525813,1.74042621,143.68,143.62,23.776884]
[1728366526022,6.9605,143.67,143.63,8.60542343]
[1728366526316,6.96,143.68,143.63,8.60542343]
[1728366528020,21.74015681,143.69,143.63,0.25098]
[1728366528190,6.9614,143.65,143.6,0.25098]
[1728366528409,6.9614,143.65,143.6,24.027864]
[1728366528901,6.9614,143.65,143.6,0.25098]
[1728366529926,6.9618,143.64,143.6,7.21458]
[1728366530220,1.74044303,143.64,143.58,6.9645]
[1728366530517,6.9633,143.61,143.57,6.9651]
[1728366531091,6.9633,143.61,143.58,1.39266215]
[1728366532920,6.9633,143.61,143.58,0.25098]
[1728366533495,6.9638,143.6,143.57,24.027864]
[1728366533700,6.9638,143.6,143.58,1.39272911]
[1728366534602,6.9638,143.6,143.56,24.3793]
[1728366536120,6.9638,143.6,143.57,0.12549]
[1728366536820,6.9643,143.59,143.57,0.12549]
[1728366537024,6.9643,143.59,143.56,0.12549]
[1728366537025,22.593,143.59,143.56,0.12549]
[1728366537205,6.9647,143.58,143.55,0.25098]
[1728366537814,6.9647,143.58,143.55,1.51842134]
[1728366538013,22.5931,143.59,143.55,1.51842134]
[1728366538526,22.5931,143.59,143.55,8.48452134]
[1728366541457,21.7626,143.62,143.56,23.902374]
[1728366541734,15.6902,143.62,143.58,0.12549]
[1728366542267,6.9634,143.61,143.58,0.12549]
[1728366543229,6.9634,143.61,143.58,1.51817924]
[1728366543723,6.9634,143.61,143.58,0.12549]
[1728366544411,15.6902,143.62,143.58,1.39268636]
[1728366544611,15.6902,143.62,143.59,0.25098]
[1728366544913,6.9618,143.64,143.6,8.35623287]
[1728366545228,6.9618,143.64,143.6,1.39253287]
[1728366545443,6.9624,143.63,143.6,1.39253287]
[1728366545727,6.9629,143.62,143.59,0.12549]
[1728366545823,6.9638,143.6,143.57,0.25098]
[1728366546127,6.9638,143.6,143.56,41.190384]
[1728366546128,6.9638,143.6,143.56,18.80622757]
[1728366546915,6.9643,143.59,143.56,1.39272757]
[1728366547117,23.2836,143.6,143.56,1.39272757]
[1728366547430,23.2836,143.6,143.56,8.35832757]
[1728366547626,8.70341135,143.63,143.57,0.12549]
[1728366547822,6.9623,143.63,143.59,6.9639]
[1728366548034,23.2815,143.64,143.6,8.35622983]
[1728366548230,16.3197,143.64,143.6,8.35622983]
[1728366548620,16.3197,143.64,143.61,6.9632]
[1728366548937,16.3197,143.64,143.6,8.35612983]
[1728366548938,23.2815,143.64,143.6,8.35612983]
[1728366549142,23.2815,143.64,143.6,6.9636]
[1728366549330,1.74058135,143.63,143.56,17.4134]
[1728366549513,6.9636,143.61,143.57,7.09049]
[1728366549716,6.9636,143.61,143.58,1.39275343]
[1728366551422,6.9636,143.61,143.57,7.09049]
[1728366551720,6.9636,143.61,143.58,1.39274702]
[1728366552968,18.06062749,143.64,143.59,0.25098]
[1728366553052,6.9624,143.63,143.59,7.21508]
[1728366553254,6.9624,143.63,143.6,1.39253465]
[1728366553936,16.3197,143.64,143.6,8.35593465]
[1728366554135,6.9623,143.63,143.59,7.21518]
[1728366554442,8.70302462,143.63,143.59,0.25098]
[1728366554945,1.74072462,143.63,143.54,34.8314]
[1728366555122,1.74072462,143.63,143.53,76.6544]
[1728366555123,1.74072462,143.63,143.56,23.902374]
[1728366555324,1.74072462,143.63,143.57,1.51823713]
[1728366555692,6.9636,143.61,143.57,1.51823713]
[1728366556756,6.9636,143.61,143.57,8.48333713]
[1728366558457,6.9624,143.63,143.59,6.964]
[1728366558642,23.2815,143.64,143.6,8.35616365]
[1728366559857,1.74070457,143.66,143.63,6.9622]
[1728366560059,1.74070457,143.66,143.63,1.39224661]
[1728366560060,6.9608,143.66,143.63,1.39224661]
[1728366561555,15.6493,143.67,143.63,1.39224661]
[1728366561763,16.1681,143.71,143.64,0.25098]
[1728366561933,16.1681,143.71,143.65,8.35317303]
[1728366561934,6.9592,143.7,143.65,8.35317303]
[1728366562252,8.69921537,143.7,143.65,8.35317303]
[1728366562861,16.1681,143.71,143.66,7.08629]
[1728366562862,17.90806759,143.71,143.66,7.08629]
[1728366563050,24.86656759,143.71,143.67,1.39185264]
[1728366563452,23.1266,143.71,143.67,1.39185264]
[1728366563755,1.73973561,143.7,143.66,1.51727849]
[1728366563956,6.9595,143.69,143.66,0.12549]
[1728366564541,6.9595,143.69,143.66,1.51744302]
[1728366564830,6.9595,143.69,143.65,17.4028]
[1728366565255,6.9599,143.68,143.63,6.9622]
[1728366565455,6.9604,143.67,143.62,24.3688]
[1728366565663,6.961,143.66,143.63,1.39225141]
[1728366566456,28.69971426,143.7,143.64,6.9614]
[1728366566644,6.96,143.68,143.64,6.9614]
[1728366567036,6.9604,143.67,143.63,0.12549]
[1728366567238,1.7400732,143.68,143.62,24.369]
[1728366567560,6.9609,143.66,143.62,24.369]
[1728366567940,1.7400732,143.68,143.62,1.39225233]
[1728366568149,6.9621,143.64,143.59,30.9657]
[1728366568348,6.9624,143.63,143.59,1.39247287]
[1728366568663,6.9624,143.63,143.59,8.35667287]
[1728366569199,6.9624,143.63,143.59,1.39247287]
[1728366569364,6.9629,143.62,143.57,6.9651]
[1728366570452,6.9629,143.62,143.58,0.25098]
[1728366571745,6.9629,143.62,143.58,1.64360773]
[1728366571943,6.9629,143.62,143.58,8.60810773]
[1728366572755,6.9624,143.63,143.58,8.60810773]
[1728366572994,15.0907,143.66,143.6,0.25098]
[1728366573150,16.83114508,143.66,143.61,6.9631]
[1728366573467,15.0907,143.66,143.62,8.35504491]
[1728366574254,15.0907,143.66,143.63,7.21318]
[1728366574653,6.9594,143.69,143.65,0.12549]
[1728366574953,6.9594,143.69,143.66,1.39201467]
[1728366575555,6.9594,143.69,143.65,6.9612]
[1728366575851,22.4641,143.7,143.66,8.35278556]
[1728366576063,15.5051,143.7,143.66,1.39198556]
[1728366576241,15.5051,143.7,143.66,24.3624]